fUST/lending_fUST_20240910
["ID","MTS","AMOUNT","RATE_DAILY","PERIOD"]
[337658603,1725922254934,-500.0,0.00025313,2]
[337658604,1725922254944,-500.0,0.00025313,2]
[337658605,1725922254954,-501.11443841,0.00025313,2]
[337658606,1725922254963,-500.0,0.00025313,2]
[337658607,1725922254972,-500.0,0.00025313,2]
[337658608,1725922254982,-151.0,0.00025313,7]
[337658609,1725922254993,-544.5,0.00025313,2]
[337658610,1725922255006,-151.0,0.00025313,7]
[337658611,1725922255018,-500.0,0.00025313,2]
[337658612,1725922255029,-812.76,0.00025313,2]
[337658613,1725922255039,-595.28,0.00025313,2]
[337658614,1725922255050,-718.59,0.00025313,2]
[337658615,1725922255060,-500.0,0.00025313,2]
[337658616,1725922255069,-500.0,0.00025313,2]
[337658617,1725922255079,-531.71035342,0.00025313,2]
[337658618,1725922255088,-1385.82,0.00025313,2]
[337658619,1725922255097,-500.0,0.00025313,2]
[337658620,1725922255107,-500.0,0.00025313,2]
[337658621,1725922255116,-500.0,0.00025313,2]
[337658622,1725922255125,-692.15,0.00025313,2]
[337658623,1725922255136,-500.0,0.00025313,2]
[337658624,1725922255145,-500.0,0.00025313,2]
[337658625,1725922255155,-1427.24,0.00025313,2]
[337658626,1725922255164,-500.0,0.00025313,2]
[337658627,1725922255173,-500.0,0.00025313,2]
[337658628,1725922255183,-500.0,0.00025313,2]
[337658629,1725922255192,-500.0,0.00025313,2]
[337658630,1725922255201,-500.0,0.00025313,2]
[337658631,1725922255211,-500.0,0.00025313,2]
[337658632,1725922255220,-607.82,0.00025313,2]
[337658633,1725922255229,-500.0,0.00025313,2]
[337658634,1725922255369,-577.62,0.00025313,2]
[337658635,1725922255378,-500.0,0.00025313,2]
[337658636,1725922255387,-151.0,0.00025313,7]
[337658637,1725922255396,-532.579088,0.00025313,7]
[337658638,1725922255405,-500.0,0.00025313,2]
[337658639,1725922255414,-532.579088,0.00025313,7]
[337658640,1725922255423,-500.0,0.00025313,2]
[337658641,1725922255433,-500.0,0.00025313,2]
[337658642,1725922255442,-500.0,0.00025313,2]
[337658643,1725922255453,-208.93038029,0.00025313,2]
[337658644,1725922255463,-500.0,0.00025313,2]
[337658645,1725922255473,-152.212518,0.00025313,7]
[337658646,1725922255482,-500.0,0.00025313,2]
[337658647,1725922255492,-500.0,0.00025313,2]
[337658648,1725922255501,-500.0,0.00025313,2]
[337658649,1725922255510,-500.0,0.00025313,2]
[337658650,1725922255520,-533.28,0.00025313,2]
[337658651,1725922255529,-500.0,0.00025313,2]
[337658652,1725922255538,-500.0,0.00025313,2]
[337658653,1725922255547,-225.21757265,0.00025313,2]
[337658654,1725922255557,-500.89674058,0.00025313,2]
[337658655,1725922255567,-526.95,0.00025313,2]
[337658656,1725922255577,-500.0,0.00025313,2]
[337658657,1725922255586,-500.0,0.00025313,2]
[337658658,1725922255596,-500.0,0.00025313,2]
[337658659,1725922255606,-500.0,0.00025313,2]
[337658660,1725922255617,-500.0,0.00025313,2]
[337658661,1725922255629,-500.0,0.00025313,2]
[337658662,1725922255640,-500.0,0.00025313,2]
[337658663,1725922255650,-426.34546258,0.00025313,2]
[337658664,1725922255660,-500.0,0.00025313,2]
[337658665,1725922255670,-500.0,0.00025313,2]
[337658666,1725922255680,-500.0,0.00025313,2]
[337658667,1725922255690,-508.68,0.00025313,2]
[337658668,1725922255704,-500.0,0.00025313,2]
[337658669,1725922255713,-973.09,0.00025313,2]
[337658670,1725922255722,-500.0,0.00025313,2]
[337658671,1725922255731,-500.0,0.00025313,2]
[337658672,1725922255742,-500.0,0.00025313,2]
[337658673,1725922255752,-500.0,0.00025313,2]
[337658674,1725922255762,-707.11,0.00025313,2]
[337658675,1725922255772,-213.748964,0.00025313,7]
[337658676,1725922255782,-151.0,0.00025313,7]
[337658677,1725922255792,-151.0,0.00025313,7]
[337658678,1725922255801,-500.0,0.00025313,2]
[337658679,1725922255811,-500.0,0.00025313,2]
[337658680,1725922255820,-500.0,0.00025313,2]
[337658681,1725922255830,-919.94,0.00025313,2]
[337658682,1725922255839,-500.0,0.00025313,2]
[337658683,1725922255850,-503.58662487,0.00025313,2]
[337658684,1725922255861,-501.47728266,0.00025313,2]
[337658685,1725922255872,-1050.83,0.00025313,2]
[337658686,1725922255882,-500.0,0.00025313,2]
[337658687,1725922255891,-551.17035896,0.00025313,2]
[337658688,1725922255901,-500.0,0.00025313,2]
[337658689,1725922255910,-501.73797643,0.00025313,2]
[337658690,1725922255920,-500.0,0.00025313,2]
[337658691,1725922255930,-747.69,0.00025313,2]
[337658692,1725922255940,-4017.96,0.00025313,2]
[337658693,1725922255950,-386.93385966,0.00025313,2]
[337658694,1725922255961,-821.15,0.00025313,2]
[337658695,1725922255970,-500.0,0.00025313,2]
[337658696,1725922255979,-500.0,0.00025313,2]
[337658697,1725922255989,-500.0,0.00025313,2]
[337658698,1725922255999,-766.18,0.00025313,2]
[337658699,1725922256010,-500.0,0.00025313,2]
[337658700,1725922256021,-500.0,0.00025313,2]
[337658701,1725922256032,-1386.75,0.00025313,2]
[337658702,1725922256043,-500.0,0.00025313,2]
[337658703,1725922256054,-500.0,0.00025313,2]
[337658704,1725922256064,-705.83,0.00025313,2]
[337658705,1725922256074,-500.0,0.00025313,2]
[337658706,1725922256083,-245.978072,0.00025313,7]
[337658707,1725922256092,-500.0,0.00025313,2]
[337658708,1725922256102,-245.978072,0.00025313,7]
[337658709,1725922256111,-500.0,0.00025313,2]
[337658710,1725922256121,-207.968246,0.00025313,7]
[337658711,1725922256131,-207.968246,0.00025313,7]
[337658712,1725922256143,-500.0,0.00025313,2]
[337658713,1725922256154,-960.65,0.00025313,2]
[337658714,1725922256164,-500.0,0.00025313,2]
[337658715,1725922256174,-610.56012859,0.00025313,2]
[337658716,1725922256184,-559.37,0.00025313,2]
[337658717,1725922256197,-500.0,0.00025313,2]
[337658718,1725922256208,-672.47,0.00025313,2]
[337658719,1725922256221,-233.198536,0.00025313,7]
[337658720,1725922256231,-500.0,0.00025313,2]
[337658721,1725922256242,-233.198536,0.00025313,7]
[337658722,1725922256252,-614.6366872,0.00025313,2]
[337658723,1725922256261,-500.0,0.00025313,2]
[337658724,1725922256271,-500.0,0.00025313,2]
[337658725,1725922256280,-500.0,0.00025313,2]
[337658726,1725922256291,-500.0,0.00025313,2]
[337658727,1725922256303,-521.22,0.00025313,2]
[337658728,1725922256314,-500.0,0.00025313,2]
[337658729,1725922256325,-500.0,0.00025313,2]
[337658730,1725922256337,-500.41957992,0.00025313,2]
[337658731,1725922256348,-1318.47,0.00025313,2]
[337658732,1725922256359,-695.88,0.00025313,2]
[337658733,1725922256370,-500.0,0.00025313,2]
[337658734,1725922256380,-500.0,0.00025313,2]
[337658735,1725922256390,-500.0,0.00025313,2]
[337658736,1725922256401,-1288.218274,0.00025313,7]
[337658737,1725922256411,-500.0,0.00025313,2]
[337658738,1725922256420,-500.0,0.00025313,2]
[337658739,1725922256430,-1288.218274,0.00025313,7]
[337658740,1725922256440,-925.74,0.00025313,2]
[337658741,1725922256450,-500.0,0.00025313,2]
[337658742,1725922256461,-151.0,0.00025313,7]
[337658743,1725922256472,-2519.47,0.00025313,2]
[337658744,1725922256481,-500.0,0.00025313,2]
[337658745,1725922256491,-329.90763008,0.00025313,2]
[337658746,1725922256501,-452.000455,0.00025313,7]
[337658747,1725922256510,-500.0,0.00025313,2]
[337658748,1725922256519,-1385.19,0.00025313,2]
[337658749,1725922256529,-151.0,0.00025313,7]
[337658750,1725922256538,-452.00045,0.00025313,7]
[337658751,1725922256548,-500.0,0.00025313,2]
[337658752,1725922256559,-500.0,0.00025313,2]
[337658753,1725922256568,-500.0,0.00025313,2]
[337658754,1725922256578,-633.52,0.00025313,2]
[337658755,1725922256588,-500.0,0.00025313,2]
[337658756,1725922256598,-500.0,0.00025313,2]
[337658757,1725922256608,-500.0,0.00025313,2]
[337658758,1725922256617,-500.0,0.00025313,2]
[337658759,1725922256630,-500.0,0.00025313,2]
[337658760,1725922256640,-500.0,0.00025313,2]
[337658761,1725922256649,-500.0,0.00025313,2]
[337658762,1725922256659,-524.69,0.00025313,2]
[337658763,1725922256669,-500.0,0.00025313,2]
[337658764,1725922256679,-500.0,0.00025313,2]
[337658765,1725922256689,-247.188886,0.00025313,7]
[337658766,1725922256702,-247.188886,0.00025313,7]
[337658767,1725922256712,-500.0,0.00025313,2]
[337658768,1725922256721,-500.0,0.00025313,2]
[337658769,1725922256730,-194.953613,0.00025313,2]
[337658770,1725922256741,-654.555546,0.00025313,7]
[337658771,1725922256751,-500.0,0.00025313,2]
[337658772,1725922256760,-654.555546,0.00025313,7]
[337658773,1725922256770,-457.473571,0.00025313,7]
[337658774,1725922256780,-500.0,0.00025313,2]
[337658775,1725922256789,-510.39857912,0.00025313,2]
[337658776,1725922256799,-457.473571,0.00025313,7]
[337658777,1725922256808,-1991.24,0.00025313,2]
[337658778,1725922256818,-442.271963,0.00025313,7]
[337658779,1725922256827,-577.38,0.00025313,2]
[337658780,1725922256836,-500.0,0.00025313,2]
[337658781,1725922256846,-442.271963,0.00025313,7]
[337658782,1725922256855,-500.0,0.00025313,2]
[337658783,1725922256865,-500.0,0.00025313,2]
[337658784,1725922256874,-648.9,0.00025313,2]
[337658785,1725922256884,-500.0,0.00025313,2]
[337658786,1725922256893,-151.0,0.00025318,7]
[337658787,1725922256902,-151.0,0.00025318,7]
[337658788,1725922256912,-290.85437,0.00025318,7]
[337658789,1725922256921,-290.85437,0.00025318,7]
[337658790,1725922256931,-151.0,0.00025318,7]
[337658791,1725922256940,-214.503406,0.00025318,7]
[337658792,1725922256949,-214.503406,0.00025318,7]
[337658793,1725922256959,-504.75987686,0.00025318,2]
[337658794,1725922256968,-157.138866,0.00025318,7]
[337658795,1725922256977,-157.138866,0.00025318,7]
[337658796,1725922256986,-3184.74,0.00025413,2]
[337658797,1725922256995,-7029.39,0.00025413,2]
[337658798,1725922257004,-1314.29,0.00025413,2]
[337658799,1725922257014,-1549.17,0.00025413,2]
[337658800,1725922257024,-1317.42,0.00025413,2]
[337658801,1725922257034,-606.33,0.00025413,2]
[337658802,1725922257043,-1156.95,0.00025413,2]
[337658803,1725922257052,-420.0,0.00025416,2]
[337658804,1725922257062,-233.198536,0.00025455,7]
[337658805,1725922257071,-233.198541,0.00025455,7]
[337658806,1725922257081,-1288.218274,0.00025455,7]
[337658807,1725922257090,-1288.218264,0.00025455,7]
[337658808,1725922257099,-151.0,0.00025455,7]
[337658809,1725922257109,-151.0,0.00025455,7]
[337658810,1725922257118,-247.188886,0.00025455,7]
[337658811,1725922257127,-247.188876,0.00025455,7]
[337658812,1725922257136,-654.555546,0.00025455,7]
[337658813,1725922257145,-654.555537,0.00025455,7]
[337658814,1725922257158,-457.473571,0.00025455,7]
[337658815,1725922257168,-457.473563,0.00025455,7]
[337658816,1725922257177,-1577.18,0.00025502,2]
[337658817,1725922257187,-500.0,0.00025512,2]
[337658818,1725922257197,-500.0,0.00025512,2]
[337658819,1725922257207,-500.0,0.00025512,2]
[337658820,1725922257217,-500.0,0.00025512,2]
[337658821,1725922257227,-504.01730043,0.00025512,2]
[337658822,1725922257236,-500.0,0.00025512,2]
[337658823,1725922257246,-503.55803721,0.00025512,2]
[337658824,1725922257255,-500.0,0.00025512,2]
[337658825,1725922257265,-500.0,0.00025512,2]
[337658826,1725922257275,-500.0,0.00025512,2]
[337658827,1725922257285,-500.0,0.00025512,2]
[337658828,1725922257297,-503.81189654,0.00025512,2]
[337658829,1725922257307,-500.0,0.00025512,2]
[337658830,1725922257318,-500.0,0.00025512,2]
[337658831,1725922257329,-574.6293726,0.00025512,2]
[337658832,1725922257340,-504.93521587,0.00025512,2]
[337658833,1725922257349,-594.78,0.00025512,2]
[337658834,1725922257359,-170.4953341,0.00025512,2]
[337658835,1725922257369,-533.92,0.00025512,2]
[337658836,1725922257378,-500.0,0.00025512,2]
[337658837,1725922257387,-500.0,0.00025512,2]
[337658838,1725922257397,-445.78018046,0.00025512,2]
[337658839,1725922257406,-500.0,0.00025512,2]
[337658840,1725922257416,-302.3,0.00025512,2]
[337658841,1725922257425,-500.0,0.00025512,2]
[337658842,1725922257435,-500.0,0.00025512,2]
[337658843,1725922257444,-500.0,0.00025512,2]
[337658844,1725922257453,-545.43,0.00025512,2]
[337658845,1725922257463,-500.0,0.00025512,2]
[337658846,1725922257473,-500.0,0.00025512,2]
[337658847,1725922257482,-1615.92,0.00025512,2]
[337658848,1725922257492,-500.0,0.00025512,2]
[337658849,1725922257503,-500.0,0.00025512,2]
[337658850,1725922257513,-619.35,0.00025512,2]
[337658851,1725922257525,-500.0,0.00025512,2]
[337658852,1725922257536,-500.0,0.00025512,2]
[337658853,1725922257547,-500.0,0.00025512,2]
[337658854,1725922257557,-500.0,0.00025512,2]
[337658855,1725922257567,-500.0,0.00025512,2]
[337658856,1725922257577,-652.03,0.00025512,2]
[337658857,1725922257586,-524.8437621,0.00025512,2]
[337658858,1725922257595,-500.0,0.00025512,2]
[337658859,1725922257604,-172.76565198,0.00025512,2]
[337658860,1725922257614,-502.51959959,0.00025512,2]
[337658861,1725922257625,-500.0,0.00025512,2]
[337658862,1725922257636,-500.0,0.00025512,2]
[337658863,1725922257647,-808.69,0.00025512,2]
[337658864,1725922257661,-500.0,0.00025512,2]
[337658865,1725922257672,-500.0,0.00025512,2]
[337658866,1725922257684,-500.0,0.00025512,2]
[337658867,1725922257697,-725.17,0.00025512,2]
[337658868,1725922257708,-500.0,0.00025512,2]
[337658869,1725922257719,-500.0,0.00025512,2]
[337658870,1725922257728,-500.0,0.00025512,2]
[337658871,1725922257740,-217.26875899,0.00025512,2]
[337658872,1725922257751,-500.0,0.00025512,2]
[337658873,1725922257760,-500.0,0.00025512,2]
[337658874,1725922257770,-500.0,0.00025512,2]
[337658875,1725922257780,-500.0,0.00025512,2]
[337658876,1725922257789,-604.42,0.00025512,2]
[337658877,1725922257798,-500.0,0.00025512,2]
[337658878,1725922257810,-500.0,0.00025512,2]
[337658879,1725922257820,-532.21999032,0.00025512,2]
[337658880,1725922257830,-753.88,0.00025512,2]
[337658881,1725922257839,-500.0,0.00025512,2]
[337658882,1725922257850,-500.0,0.00025512,2]
[337658883,1725922257860,-566.44834057,0.00025512,2]
[337658884,1725922257870,-500.0,0.00025512,2]
[337658885,1725922257879,-654.56,0.00025512,2]
[337658886,1725922257889,-5020.26,0.00025514,2]
[337658887,1725922257898,-4687.79,0.00025514,2]
[337658888,1725922257908,-1711.78,0.00025514,2]
[337658889,1725922257918,-500.0,0.00025514,2]
[337658890,1725922257928,-9222.97,0.00025514,2]
[337658891,1725922257938,-1179.98,0.00025514,2]
[337658892,1725922257949,-1496.29,0.00025514,2]
[337658893,1725922257959,-500.0,0.00025514,2]
[337658894,1725922257968,-2068.56,0.00025514,2]
[337658895,1725922257977,-1818.59,0.00025514,2]
[337658896,1725922257987,-931.31,0.00025514,2]
[337658897,1725922257996,-500.0,0.00025514,2]
[337658898,1725922258005,-500.0,0.00025514,2]
[337658899,1725922258015,-533.48,0.00025514,2]
[337658900,1725922258158,-62511.52,0.00025514,2]
[337658901,1725922258167,-2144.08,0.00025514,2]
[337658902,1725922258177,-2383.41,0.00025514,2]
[337658903,1725922258185,-2125.52,0.00025514,2]
[337658904,1725922258195,-500.0,0.00025525,2]
[337658905,1725922258205,-925.03,0.00025525,2]
[337658906,1725922258215,-500.0,0.00025525,2]
[337658907,1725922258224,-500.0,0.00025525,2]
[337658908,1725922258234,-500.0,0.00025525,2]
[337658909,1725922258244,-500.0,0.00025525,2]
[337658910,1725922258255,-500.0,0.00025525,2]
[337658911,1725922258265,-500.0,0.00025525,2]
[337658912,1725922258274,-500.0,0.00025525,2]
[337658913,1725922258284,-1451.27,0.00025525,2]
[337658914,1725922258296,-500.0,0.00025525,2]
[337658915,1725922258308,-724.08,0.00025525,2]
[337658916,1725922258319,-500.0,0.00025525,2]
[337658917,1725922258330,-625.66,0.00025525,2]
[337658918,1725922258339,-555.93,0.00025525,2]
[337658919,1725922258348,-500.0,0.00025525,2]
[337658920,1725922258357,-1687.17,0.00025525,2]
[337658921,1725922258367,-1617.31,0.00025525,2]
[337658922,1725922258378,-346.58636712,0.00025525,2]
[337658923,1725922258387,-500.0,0.00025525,2]
[337658924,1725922258396,-500.0,0.00025525,2]
[337658925,1725922258406,-500.0,0.00025525,2]
[337658926,1725922258416,-290.85437,0.00025525,7]
[337658927,1725922258427,-500.0,0.00025525,2]
[337658928,1725922258438,-1208.94,0.00025525,2]
[337658929,1725922258448,-290.854371,0.00025525,7]
[337658930,1725922258459,-183.71260017,0.00025525,2]
[337658931,1725922258468,-500.0,0.00025525,2]
[337658932,1725922258479,-500.0,0.00025525,2]
[337658933,1725922258488,-1145.13,0.00025525,2]
[337658934,1725922258497,-692.06,0.00025525,2]
[337658935,1725922258507,-1848.23,0.00025525,2]
[337658936,1725922258519,-500.0,0.00025525,2]
[337658937,1725922258528,-151.0,0.00025525,7]
[337658938,1725922258537,-501.03545442,0.00025525,2]
[337658939,1725922258547,-2641.6,0.00025525,2]
[337658940,1725922258557,-245.978072,0.00025525,7]
[337658941,1725922258567,-500.0,0.00025525,2]
[337658942,1725922258576,-245.97808,0.00025525,7]
[337658943,1725922258586,-500.0,0.00025525,2]
[337658944,1725922258595,-207.968246,0.00025525,7]
[337658945,1725922258605,-207.968248,0.00025525,7]
[337658946,1725922258615,-214.503406,0.00025525,7]
[337658947,1725922258624,-910.99,0.00025525,2]
[337658948,1725922258634,-890.7,0.00025525,2]
[337658949,1725922258643,-214.503406,0.00025525,7]
[337658950,1725922258654,-500.0,0.00025525,2]
[337658951,1725922258663,-4857.6,0.00025525,2]
[337658952,1725922258672,-500.0,0.00025525,2]
[337658953,1725922258681,-500.0,0.00025525,2]
[337658954,1725922258693,-983.86,0.00025525,2]
[337658955,1725922258703,-157.138866,0.00025525,7]
[337658956,1725922258713,-500.0,0.00025525,2]
[337658957,1725922258722,-157.138868,0.00025525,7]
[337658958,1725922258732,-500.0,0.00025525,2]
[337658959,1725922258741,-500.0,0.00025525,2]
[337658960,1725922258750,-500.0,0.00025525,2]
[337658961,1725922258759,-2201.26,0.00025525,2]
[337658962,1725922258771,-650.68,0.00025525,2]
[337658963,1725922258780,-500.0,0.00025525,2]
[337658964,1725922258789,-1022.99,0.00025525,2]
[337658965,1725922258798,-3927.03,0.00025525,2]
[337658966,1725922258807,-2210.56,0.00025525,2]
[337658967,1725922258819,-541.02,0.00025525,2]
[337658968,1725922258830,-500.0,0.00025525,2]
[337658969,1725922258840,-5117.8,0.00025525,2]
[337658970,1725922258851,-1124.27,0.00025525,2]
[337658971,1725922258861,-500.0,0.00025525,2]
[337658972,1725922258871,-2166.28,0.00025525,2]
[337658973,1725922258882,-1198.04,0.00025525,2]
[337658974,1725922258894,-1705.73,0.00025525,2]
[337658975,1725922258906,-3974.78,0.00025525,2]
[337658976,1725922258916,-500.0,0.00025525,2]
[337658977,1725922258927,-500.0,0.00025525,2]
[337658978,1725922258937,-500.0,0.00025525,2]
[337658979,1725922258947,-1688.15,0.00025525,2]
[337658980,1725922258959,-695.38,0.00025525,2]
[337658981,1725922258970,-1565.33,0.00025525,2]
[337658982,1725922258980,-500.0,0.00025525,2]
[337658983,1725922258991,-771.28,0.00025525,2]
[337658984,1725922259004,-500.0,0.00025525,2]
[337658985,1725922259013,-2011.46,0.00025525,2]
[337658986,1725922259024,-878.67,0.00025525,2]
[337658987,1725922259034,-859.21,0.00025525,2]
[337658988,1725922259044,-754.68,0.00025525,2]
[337658989,1725922259055,-1882.7,0.00025525,2]
[337658990,1725922259064,-500.0,0.00025525,2]
[337658991,1725922259073,-500.0,0.00025525,2]
[337658992,1725922259083,-442.271963,0.00025525,7]
[337658993,1725922259092,-442.271963,0.00025525,7]
[337658994,1725922259102,-548.41,0.00025525,2]
[337658995,1725922259112,-442.271963,0.00025525,7]
[337658996,1725922259122,-442.271961,0.00025525,7]
[337658997,1725922259132,-1643.4,0.00025525,2]
[337658998,1725922259141,-921.25,0.00025525,2]
[337658999,1725922259151,-500.0,0.00025525,2]
[337659000,1725922259160,-644.58,0.00025525,2]
[337659001,1725922259172,-673.51,0.00025525,2]
[337659002,1725922259183,-151.0,0.00025527,7]
[337659003,1725922259195,-151.0,0.00025527,7]
[337659004,1725922259207,-500.0,0.00025537,2]
[337659005,1725922259218,-500.0,0.00025537,2]
[337659006,1725922259228,-500.0,0.00025537,2]
[337659007,1725922259237,-500.0,0.00025537,2]
[337659008,1725922259247,-500.0,0.00025537,2]
[337659009,1725922259256,-500.0,0.00025537,2]
[337659010,1725922259266,-500.0,0.00025537,2]
[337659011,1725922259275,-1226.65,0.00025537,2]
[337659012,1725922259285,-500.0,0.00025537,2]
[337659013,1725922259296,-500.0,0.00025537,2]
[337659014,1725922259307,-500.0,0.00025537,2]
[337659015,1725922259318,-500.0,0.00025537,2]
[337659016,1725922259329,-500.0,0.00025537,2]
[337659017,1725922259339,-500.0,0.00025537,2]
[337659018,1725922259350,-500.0,0.00025537,2]
[337659019,1725922259360,-500.0,0.00025537,2]
[337659020,1725922259372,-532.579088,0.00025537,7]
[337659021,1725922259384,-151.0,0.00025537,7]
[337659022,1725922259395,-500.0,0.00025537,2]
[337659023,1725922259405,-532.579088,0.00025537,7]
[337659024,1725922259416,-796.58,0.00025537,2]
[337659025,1725922259427,-500.0,0.00025537,2]
[337659026,1725922259438,-500.0,0.00025537,2]
[337659027,1725922259450,-1076.49,0.00025537,2]
[337659028,1725922259460,-796.83,0.00025537,2]
[337659029,1725922259469,-508.98,0.00025537,2]
[337659030,1725922259479,-507.92,0.00025537,2]
[337659031,1725922259488,-500.0,0.00025537,2]
[337659032,1725922259497,-500.0,0.00025537,2]
[337659033,1725922259507,-955.42,0.00025537,2]
[337659034,1725922259517,-545.50687549,0.00025537,2]
[337659035,1725922259526,-500.0,0.00025537,2]
[337659036,1725922259535,-500.0,0.00025537,2]
[337659037,1725922259545,-500.0,0.00025537,2]
[337659038,1725922259555,-779.38,0.00025537,2]
[337659039,1725922259566,-500.0,0.00025537,2]
[337659040,1725922259578,-500.0,0.00025537,2]
[337659041,1725922259589,-1108.89,0.00025537,2]
[337659042,1725922259600,-500.0,0.00025537,2]
[337659043,1725922259611,-837.74,0.00025537,2]
[337659044,1725922259621,-500.0,0.00025537,2]
[337659045,1725922259631,-213.748964,0.00025537,7]
[337659046,1725922259641,-213.748964,0.00025537,7]
[337659047,1725922259651,-151.0,0.00025537,7]
[337659048,1725922259661,-1032.1,0.00025537,2]
[337659049,1725922259671,-359.01368244,0.00025537,2]
[337659050,1725922259680,-151.0,0.00025537,7]
[337659051,1725922259689,-1067.14,0.00025537,2]
[337659052,1725922259702,-500.0,0.00025537,2]
[337659053,1725922259712,-500.0,0.00025537,2]
[337659054,1725922259731,-807.78,0.00025537,2]
[337659055,1725922259740,-500.0,0.00025537,2]
[337659056,1725922259749,-744.09,0.00025537,2]
[337659057,1725922259759,-2007.96,0.00025537,2]
[337659058,1725922259770,-2184.14,0.00025537,2]
[337659059,1725922259780,-500.0,0.00025537,2]
[337659060,1725922259788,-500.0,0.00025537,2]
[337659061,1725922259799,-500.0,0.00025537,2]
[337659062,1725922259809,-622.79424468,0.00025537,2]
[337659063,1725922259819,-500.0,0.00025537,2]
[337659064,1725922259828,-500.0,0.00025537,2]
[337659065,1725922259837,-1303.77,0.00025537,2]
[337659066,1725922259846,-500.0,0.00025537,2]
[337659067,1725922259856,-500.0,0.00025537,2]
[337659068,1725922259865,-867.25,0.00025537,2]
[337659069,1725922259874,-400.63237236,0.00025537,2]
[337659070,1725922259884,-926.59,0.00025537,2]
[337659071,1725922259894,-500.0,0.00025537,2]
[337659072,1725922259903,-500.0,0.00025537,2]
[337659073,1725922259912,-2077.09,0.00025537,2]
[337659074,1725922259922,-1023.46,0.00025537,2]
[337659075,1725922259931,-877.82,0.00025537,2]
[337659076,1725922259940,-2032.16,0.00025537,2]
[337659077,1725922259949,-2118.12,0.00025537,2]
[337659078,1725922259963,-1631.8,0.00025537,2]
[337659079,1725922259972,-32719.02,0.00025537,2]
[337659080,1725922259981,-2019.71,0.00025537,2]
[337659081,1725922259989,-500.0,0.00025537,2]
[337659082,1725922259999,-708.37,0.00025537,2]
[337659083,1725922260008,-1584.91,0.00025537,2]
[337659084,1725922260017,-500.0,0.00025537,2]
[337659085,1725922260027,-500.0,0.00025537,2]
[337659086,1725922260037,-500.0,0.00025537,2]
[337659087,1725922260046,-500.0,0.00025537,2]
[337659088,1725922260056,-500.0,0.00025537,2]
[337659089,1725922260066,-500.0,0.00025537,2]
[337659090,1725922260075,-672.17,0.00025537,2]
[337659091,1725922260085,-1361.36,0.00025537,2]
[337659092,1725922260094,-569.88,0.00025537,2]
[337659093,1725922260104,-7889.45,0.00025537,2]
[337659094,1725922260113,-1030.55,0.00025537,2]
[337659095,1725922260122,-500.0,0.00025537,2]
[337659096,1725922260131,-500.0,0.00025537,2]
[337659097,1725922260140,-1093.82,0.00025537,2]
[337659098,1725922260150,-1000.81,0.00025537,2]
[337659099,1725922260161,-1809.12,0.00025537,2]
[337659100,1725922260170,-500.0,0.00025537,2]
[337659101,1725922260180,-1831.65,0.00025537,2]
[337659102,1725922260189,-597.62,0.00025537,2]